[Event "*** MasterClass Titled Tuesday Blitz"]
[Site "Chess.com"]
[Date "2017.09.05"]
[Round "10"]
[White "popov_m"]
[Black "abubakrtagelsir"]
[Result "1-0"]
[WhiteElo "2472"]
[BlackElo "2241"]
[TimeControl "180+2"]
[EndTime "15:24:11 PDT"]
[Termination "popov_m won on time"]

1. d4 {[%clk 0:03:01.9]} 1... d5 {[%clk 0:02:59.5]} 2. Bf4 {[%clk 0:03:00.4]}
2... Nf6 {[%clk 0:02:59]} 3. e3 {[%clk 0:03:01.6]} 3... c5 {[%clk 0:02:57.7]} 4.
Nf3 {[%clk 0:02:51.2]} 4... Nc6 {[%clk 0:02:56.8]} 5. Nbd2 {[%clk 0:02:48.3]}
5... Qb6 {[%clk 0:02:46.3]} 6. dxc5 {[%clk 0:02:28.2]} 6... Qxb2 {[%clk
0:02:43.6]} 7. Rb1 {[%clk 0:02:29.7]} 7... Qa3 {[%clk 0:02:42.8]} 8. Bb5 {[%clk
0:02:25.6]} 8... Qa5 {[%clk 0:02:40.5]} 9. O-O {[%clk 0:02:23.3]} 9... Bg4
{[%clk 0:02:35.7]} 10. c4 {[%clk 0:01:38.2]} 10... e6 {[%clk 0:02:32.1]} 11. Ba4
{[%clk 0:01:11.3]} 11... Qa6 {[%clk 0:02:15.3]} 12. Bb5 {[%clk 0:00:37.5]} 12...
Qa5 {[%clk 0:02:14.4]} 13. Nb3 {[%clk 0:00:34.8]} 13... Qd8 {[%clk 0:02:13.7]}
14. Nbd4 {[%clk 0:00:35.5]} 14... Qc8 {[%clk 0:02:08.8]} 15. Ba4 {[%clk
0:00:30.5]} 15... Bxf3 {[%clk 0:01:41.6]} 16. Qxf3 {[%clk 0:00:28.8]} 16... Nd7
{[%clk 0:00:21.8]} 17. cxd5 {[%clk 0:00:26]} 17... Nxd4 {[%clk 0:00:18.1]} 18.
exd4 {[%clk 0:00:26.3]} 18... Be7 {[%clk 0:00:13.5]} 19. dxe6 {[%clk 0:00:27.5]}
19... fxe6 {[%clk 0:00:13.5]} 20. Rxb7 {[%clk 0:00:21.9]} 20... O-O {[%clk
0:00:13]} 21. Rxd7 {[%clk 0:00:22.9]} 21... Qa6 {[%clk 0:00:13]} 22. Rxe7 {[%clk
0:00:18.7]} 22... Qxa4 {[%clk 0:00:13.3]} 23. Qg3 {[%clk 0:00:12.3]} 23... Rf7
{[%clk 0:00:09.4]} 24. Rxf7 {[%clk 0:00:13.3]} 24... Kxf7 {[%clk 0:00:09.7]} 25.
Be5 {[%clk 0:00:15]} 25... g6 {[%clk 0:00:05]} 26. Qf3+ {[%clk 0:00:15.9]} 1-0

[Event "*** MasterClass Titled Tuesday Blitz"]
[Site "Chess.com"]
[Date "2017.09.05"]
[Round "10"]
[White "nickmatta"]
[Black "Noukii"]
[Result "0-1"]
[WhiteElo "2340"]
[BlackElo "2663"]
[TimeControl "180+2"]
[EndTime "15:24:27 PDT"]
[Termination "Noukii won by resignation"]

1. d4 {[%clk 0:03:01.9]} 1... d5 {[%clk 0:02:57.1]} 2. c4 {[%clk 0:03:03]} 2...
c6 {[%clk 0:02:58.3]} 3. Nf3 {[%clk 0:03:04.4]} 3... Nf6 {[%clk 0:02:55.4]} 4.
Qc2 {[%clk 0:03:05.5]} 4... dxc4 {[%clk 0:02:53.7]} 5. Qxc4 {[%clk 0:03:06.4]}
5... Bg4 {[%clk 0:02:54.3]} 6. Nbd2 {[%clk 0:03:07.8]} 6... e6 {[%clk
0:02:54.5]} 7. g3 {[%clk 0:03:07.9]} 7... Be7 {[%clk 0:02:55.3]} 8. Bg2 {[%clk
0:03:07.6]} 8... O-O {[%clk 0:02:56.5]} 9. O-O {[%clk 0:03:08.2]} 9... Nbd7
{[%clk 0:02:58.1]} 10. b3 {[%clk 0:03:03.2]} 10... a5 {[%clk 0:02:53.6]} 11. a3
{[%clk 0:03:04.1]} 11... Rc8 {[%clk 0:02:46.1]} 12. Bb2 {[%clk 0:02:59.1]} 12...
b5 {[%clk 0:02:42.5]} 13. Qd3 {[%clk 0:02:56.5]} 13... Bf5 {[%clk 0:02:43.7]}
14. e4 {[%clk 0:02:57]} 14... Nc5 {[%clk 0:02:45.2]} 15. Qe2 {[%clk 0:02:33.8]}
15... Ncxe4 {[%clk 0:02:45]} 16. Rac1 {[%clk 0:01:52.5]} 16... Nxd2 {[%clk
0:02:41.5]} 17. Qxd2 {[%clk 0:01:50.6]} 17... Be4 {[%clk 0:02:39.1]} 18. Ne5
{[%clk 0:01:33.5]} 18... Bxg2 {[%clk 0:02:39]} 19. Kxg2 {[%clk 0:01:35.4]} 19...
Qd5+ {[%clk 0:02:40]} 20. Kg1 {[%clk 0:01:27.5]} 20... Nd7 {[%clk 0:02:40.5]}
21. Nxd7 {[%clk 0:01:25.2]} 21... Qxd7 {[%clk 0:02:42.3]} 22. Qxa5 {[%clk
0:01:27.1]} 22... Ra8 {[%clk 0:02:26.2]} 23. Qb6 {[%clk 0:01:28]} 23... Bxa3
{[%clk 0:02:26]} 24. Bxa3 {[%clk 0:01:01.8]} 24... Rxa3 {[%clk 0:02:27.9]} 25.
Rxc6 {[%clk 0:00:50.8]} 25... Rxb3 {[%clk 0:02:27.6]} 26. Rfc1 {[%clk
0:00:42.1]} 26... Rd3 {[%clk 0:02:20.7]} 27. Rd6 {[%clk 0:00:41]} 27... Qe7
{[%clk 0:02:13]} 28. Rc7 {[%clk 0:00:33]} 28... Qf6 {[%clk 0:02:10.6]} 29. Qxb5
{[%clk 0:00:17.2]} 29... Rd2 {[%clk 0:01:54.1]} 30. Qf1 {[%clk 0:00:12]} 30...
Rxd4 {[%clk 0:01:54.5]} 31. Rxd4 {[%clk 0:00:09.8]} 31... Qxd4 {[%clk
0:01:56.4]} 32. Qc1 {[%clk 0:00:10.2]} 32... Qd8 {[%clk 0:01:55.6]} 33. Qc6
{[%clk 0:00:07.7]} 33... h5 {[%clk 0:01:54]} 34. h4 {[%clk 0:00:06.1]} 34... Qb8
{[%clk 0:01:50.3]} 35. Qd7 {[%clk 0:00:04.9]} 35... Qb1+ {[%clk 0:01:51.2]} 36.
Kg2 {[%clk 0:00:05.7]} 36... Qe4+ {[%clk 0:01:52.8]} 37. Kg1 {[%clk 0:00:06.7]}
37... Qa8 {[%clk 0:01:49.8]} 38. Ra7 {[%clk 0:00:06.6]} 38... Qf3 {[%clk
0:01:44]} 39. Rc7 {[%clk 0:00:02.9]} 39... Kh7 {[%clk 0:01:36.9]} 40. Rc8 {[%clk
0:00:03.3]} 40... Rxc8 {[%clk 0:01:37.9]} 41. Qxc8 {[%clk 0:00:05.2]} 41... e5
{[%clk 0:01:37.7]} 42. Qc2+ {[%clk 0:00:05.7]} 42... e4 {[%clk 0:01:39.2]} 43.
Qd2 {[%clk 0:00:06.3]} 43... f5 {[%clk 0:01:35.2]} 44. Qg5 {[%clk 0:00:06.8]}
44... Qg4 {[%clk 0:01:32.3]} 45. Qd2 {[%clk 0:00:07.4]} 45... f4 {[%clk
0:01:27.2]} 46. Qxf4 {[%clk 0:00:03.5]} 46... Qxf4 {[%clk 0:01:28.3]} 47. gxf4
{[%clk 0:00:05.4]} 47... Kg6 {[%clk 0:01:30]} 48. Kg2 {[%clk 0:00:06.9]} 48...
Kf5 {[%clk 0:01:31.6]} 49. Kg3 {[%clk 0:00:07.2]} 49... g6 {[%clk 0:01:33.1]}
50. f3 {[%clk 0:00:03.4]} 50... e3 {[%clk 0:01:34.2]} 51. Kg2 {[%clk 0:00:03.3]}
51... Kxf4 {[%clk 0:01:34.8]} 0-1

[Event "*** MasterClass Titled Tuesday Blitz"]
[Site "Chess.com"]
[Date "2017.09.05"]
[Round "10"]
[White "GMKrikor"]
[Black "wonderfultime"]
[Result "1-0"]
[WhiteElo "2607"]
[BlackElo "2660"]
[TimeControl "180+2"]
[EndTime "15:24:38 PDT"]
[Termination "GMKrikor won by checkmate"]

1. e4 {[%clk 0:03:00.3]} 1... c5 {[%clk 0:03:01.1]} 2. Nf3 {[%clk 0:03:00.5]}
2... d6 {[%clk 0:03:02.4]} 3. d4 {[%clk 0:03:00.5]} 3... cxd4 {[%clk 0:03:04.3]}
4. Nxd4 {[%clk 0:02:58.6]} 4... Nf6 {[%clk 0:03:04.5]} 5. Nc3 {[%clk 0:02:59.5]}
5... g6 {[%clk 0:03:05.8]} 6. Be3 {[%clk 0:02:55.2]} 6... Bg7 {[%clk 0:03:07.1]}
7. f3 {[%clk 0:02:56.8]} 7... O-O {[%clk 0:03:08.1]} 8. Qd2 {[%clk 0:02:58.2]}
8... Nc6 {[%clk 0:03:09.5]} 9. Bc4 {[%clk 0:02:58.4]} 9... Bd7 {[%clk
0:03:04.6]} 10. O-O-O {[%clk 0:02:59.2]} 10... Rc8 {[%clk 0:03:05.6]} 11. Bb3
{[%clk 0:03:00.2]} 11... Nxd4 {[%clk 0:03:06.7]} 12. Bxd4 {[%clk 0:03:01.5]}
12... b5 {[%clk 0:03:08.2]} 13. a3 {[%clk 0:02:53.4]} 13... a5 {[%clk
0:03:08.7]} 14. Kb1 {[%clk 0:02:53.8]} 14... Bc6 {[%clk 0:02:11.3]} 15. Rhe1
{[%clk 0:02:50.8]} 15... Rb8 {[%clk 0:02:01.3]} 16. Nd5 {[%clk 0:02:41.6]} 16...
Bxd5 {[%clk 0:01:59.1]} 17. exd5 {[%clk 0:02:41.2]} 17... Qc7 {[%clk 0:01:52.8]}
18. g4 {[%clk 0:02:11.7]} 18... Rfc8 {[%clk 0:01:49.7]} 19. h4 {[%clk
0:01:55.1]} 19... Ne8 {[%clk 0:01:20.9]} 20. c3 {[%clk 0:01:44.7]} 20... Bxd4
{[%clk 0:01:03.2]} 21. Qxd4 {[%clk 0:01:45.4]} 21... Rb7 {[%clk 0:01:03.3]} 22.
h5 {[%clk 0:01:41.3]} 22... Qc5 {[%clk 0:01:04.1]} 23. Qd2 {[%clk 0:01:16.4]}
23... Nf6 {[%clk 0:00:56.9]} 24. hxg6 {[%clk 0:01:15.8]} 24... fxg6 {[%clk
0:00:51.4]} 25. Rh1 {[%clk 0:01:04.2]} 25... Rf8 {[%clk 0:00:52.2]} 26. Rde1
{[%clk 0:00:57.5]} 26... Rf7 {[%clk 0:00:52.1]} 27. Re6 {[%clk 0:00:52.4]} 27...
b4 {[%clk 0:00:47.2]} 28. cxb4 {[%clk 0:00:53.3]} 28... axb4 {[%clk 0:00:48.2]}
29. a4 {[%clk 0:00:55]} 29... Qb6 {[%clk 0:00:38]} 30. Bc2 {[%clk 0:00:48.4]}
30... b3 {[%clk 0:00:28.1]} 31. Bxg6 {[%clk 0:00:49.5]} 31... hxg6 {[%clk
0:00:29]} 32. Qh6 {[%clk 0:00:50.8]} 32... Rg7 {[%clk 0:00:23]} 33. g5 {[%clk
0:00:42.1]} 33... Ne8 {[%clk 0:00:23.1]} 34. Rxg6 {[%clk 0:00:39.6]} 34... Qd4
{[%clk 0:00:20.6]} 35. Rxg7+ {[%clk 0:00:29.1]} 35... Nxg7 {[%clk 0:00:22.5]}
36. g6 {[%clk 0:00:25.3]} 36... Qxd5 {[%clk 0:00:20.4]} 37. Qh8# {[%clk
0:00:24.9]} 1-0

[Event "*** MasterClass Titled Tuesday Blitz"]
[Site "Chess.com"]
[Date "2017.09.05"]
[Round "10"]
[White "nihalsarin"]
[Black "manubibi"]
[Result "1-0"]
[WhiteElo "2628"]
[BlackElo "2435"]
[TimeControl "180+2"]
[EndTime "15:24:38 PDT"]
[Termination "nihalsarin won by resignation"]

1. e4 {[%clk 0:03:01.9]} 1... c5 {[%clk 0:03:00.4]} 2. Nf3 {[%clk 0:03:03.3]}
2... d6 {[%clk 0:03:01.5]} 3. b3 {[%clk 0:03:04.2]} 3... Nf6 {[%clk 0:02:59.6]}
4. e5 {[%clk 0:03:05.1]} 4... dxe5 {[%clk 0:02:58.3]} 5. Nxe5 {[%clk 0:03:06.5]}
5... Nbd7 {[%clk 0:02:58.9]} 6. Bb2 {[%clk 0:03:05.2]} 6... Nxe5 {[%clk
0:02:58.4]} 7. Bxe5 {[%clk 0:03:06.1]} 7... e6 {[%clk 0:02:56.9]} 8. Be2 {[%clk
0:03:06.8]} 8... Bd6 {[%clk 0:02:56.4]} 9. Bb2 {[%clk 0:03:05.8]} 9... O-O
{[%clk 0:02:56.8]} 10. O-O {[%clk 0:03:06.6]} 10... Qc7 {[%clk 0:02:49.2]} 11.
h3 {[%clk 0:03:07.4]} 11... Bh2+ {[%clk 0:02:48.1]} 12. Kh1 {[%clk 0:03:08.2]}
12... Be5 {[%clk 0:02:49.7]} 13. Nc3 {[%clk 0:03:08.9]} 13... a6 {[%clk
0:02:44.9]} 14. a4 {[%clk 0:03:09.7]} 14... Bd7 {[%clk 0:02:40.1]} 15. Bf3
{[%clk 0:03:10.7]} 15... Bc6 {[%clk 0:02:38.2]} 16. Re1 {[%clk 0:03:10.8]} 16...
Bd4 {[%clk 0:02:36.4]} 17. Kg1 {[%clk 0:03:08.9]} 17... Rad8 {[%clk 0:02:35.5]}
18. d3 {[%clk 0:03:07.2]} 18... Qg3 {[%clk 0:02:20.4]} 19. Ne4 {[%clk
0:02:43.4]} 19... Bxe4 {[%clk 0:01:39.7]} 20. Bxd4 {[%clk 0:02:42.7]} 20... Bxf3
{[%clk 0:01:37.8]} 21. fxg3 {[%clk 0:02:43.6]} 21... Bxd1 {[%clk 0:01:37.3]} 22.
Bxf6 {[%clk 0:02:45.1]} 22... Bxc2 {[%clk 0:01:21.8]} 23. Bxd8 {[%clk
0:02:45.3]} 23... Rxd8 {[%clk 0:01:23.7]} 24. Ra3 {[%clk 0:02:10.2]} 24... Rxd3
{[%clk 0:01:06.8]} 25. Rc1 {[%clk 0:02:08.9]} 25... Rxb3 {[%clk 0:00:24.2]} 26.
Rxb3 {[%clk 0:01:47.8]} 26... Bxb3 {[%clk 0:00:26.1]} 27. Rxc5 {[%clk
0:01:48.8]} 27... Kf8 {[%clk 0:00:20.1]} 28. a5 {[%clk 0:01:44.5]} 28... Bd5
{[%clk 0:00:20.2]} 29. Rc7 {[%clk 0:01:45.7]} 29... Bc6 {[%clk 0:00:20.8]} 30.
Kf2 {[%clk 0:01:43.7]} 30... g5 {[%clk 0:00:21.5]} 31. g4 {[%clk 0:01:43.9]}
31... Kg7 {[%clk 0:00:22.4]} 32. g3 {[%clk 0:01:43.2]} 32... Kg6 {[%clk
0:00:22.1]} 33. Ke3 {[%clk 0:01:44.2]} 33... h6 {[%clk 0:00:19.4]} 34. h4 {[%clk
0:01:44.9]} 34... h5 {[%clk 0:00:17]} 35. gxh5+ {[%clk 0:01:43]} 35... Kxh5
{[%clk 0:00:16.9]} 36. Rxf7 {[%clk 0:01:38.5]} 36... gxh4 {[%clk 0:00:15.9]} 37.
Rh7+ {[%clk 0:01:39.7]} 37... Kg6 {[%clk 0:00:17.1]} 38. Rxh4 {[%clk 0:01:40.3]}
38... Kg5 {[%clk 0:00:18.7]} 39. Rb4 {[%clk 0:01:39.4]} 39... e5 {[%clk
0:00:18]} 40. Rc4 {[%clk 0:01:39.2]} 40... Kf5 {[%clk 0:00:18]} 41. Rc5 {[%clk
0:01:33.1]} 41... Kg4 {[%clk 0:00:18.4]} 42. Rxe5 {[%clk 0:01:33.6]} 42... Kxg3
{[%clk 0:00:19.6]} 43. Rg5+ {[%clk 0:01:34.9]} 43... Kh4 {[%clk 0:00:20.7]} 44.
Rg7 {[%clk 0:01:36.4]} 44... Kh5 {[%clk 0:00:21]} 45. Kd4 {[%clk 0:01:37.6]}
45... Kh6 {[%clk 0:00:22.9]} 46. Rc7 {[%clk 0:01:35.3]} 46... Kg6 {[%clk
0:00:23.4]} 47. Kc5 {[%clk 0:01:33.6]} 47... Bf3 {[%clk 0:00:22.4]} 48. Kb6
{[%clk 0:01:29.6]} 48... Kf6 {[%clk 0:00:23.4]} 49. Rxb7 {[%clk 0:01:29.4]}
49... Be2 {[%clk 0:00:21.7]} 50. Ra7 {[%clk 0:01:29.8]} 50... Ke6 {[%clk
0:00:22.6]} 51. Rxa6 {[%clk 0:01:30.6]} 51... Kd6 {[%clk 0:00:18.1]} 52. Ra8
{[%clk 0:01:29.6]} 52... Bf3 {[%clk 0:00:19.2]} 53. Rd8+ {[%clk 0:01:30]} 53...
Ke7 {[%clk 0:00:19.1]} 54. Rd2 {[%clk 0:01:31.1]} 1-0

[Event "*** MasterClass Titled Tuesday Blitz"]
[Site "Chess.com"]
[Date "2017.09.05"]
[Round "10"]
[White "Bad4life"]
[Black "pawnwonder"]
[Result "1-0"]
[WhiteElo "2165"]
[BlackElo "1991"]
[TimeControl "180+2"]
[EndTime "15:24:44 PDT"]
[Termination "Bad4life won by checkmate"]

1. e4 {[%clk 0:03:01.9]} 1... c5 {[%clk 0:03:00.1]} 2. Nf3 {[%clk 0:03:02.8]}
2... Nc6 {[%clk 0:02:57.5]} 3. Bb5 {[%clk 0:03:03.2]} 3... g6 {[%clk 0:02:58.7]}
4. Bxc6 {[%clk 0:03:02.5]} 4... bxc6 {[%clk 0:03:00.8]} 5. O-O {[%clk
0:03:04.4]} 5... Bg7 {[%clk 0:03:02.8]} 6. Re1 {[%clk 0:03:04.1]} 6... Nh6
{[%clk 0:03:04.3]} 7. c3 {[%clk 0:03:03.6]} 7... O-O {[%clk 0:03:04.9]} 8. h3
{[%clk 0:03:02.1]} 8... d6 {[%clk 0:03:04.2]} 9. d4 {[%clk 0:03:01.4]} 9... cxd4
{[%clk 0:03:05.6]} 10. cxd4 {[%clk 0:03:03.3]} 10... Rb8 {[%clk 0:02:58.2]} 11.
Nc3 {[%clk 0:03:04.4]} 11... f5 {[%clk 0:02:50.5]} 12. e5 {[%clk 0:03:02.6]}
12... dxe5 {[%clk 0:02:46.2]} 13. dxe5 {[%clk 0:03:03.7]} 13... e6 {[%clk
0:02:40.8]} 14. Qa4 {[%clk 0:02:56.1]} 14... Qb6 {[%clk 0:02:36.6]} 15. Qh4
{[%clk 0:02:45.5]} 15... Nf7 {[%clk 0:02:31.7]} 16. Be3 {[%clk 0:02:41.3]} 16...
Qd8 {[%clk 0:02:27.8]} 17. Qg3 {[%clk 0:02:23.2]} 17... Rxb2 {[%clk 0:02:06.7]}
18. Rad1 {[%clk 0:02:24.2]} 18... Qa5 {[%clk 0:01:55.5]} 19. Rc1 {[%clk
0:02:00.1]} 19... Nxe5 {[%clk 0:01:47.4]} 20. Bf4 {[%clk 0:01:34]} 20... Nxf3+
{[%clk 0:01:46.1]} 21. Qxf3 {[%clk 0:01:35.9]} 21... e5 {[%clk 0:01:34.1]} 22.
Bg5 {[%clk 0:01:34.7]} 22... e4 {[%clk 0:01:33.3]} 23. Qg3 {[%clk 0:01:33.5]}
23... Bd4 {[%clk 0:01:19.2]} 24. Ne2 {[%clk 0:01:24]} 24... Be5 {[%clk
0:01:10.3]} 25. Nf4 {[%clk 0:01:04.8]} 25... Rxa2 {[%clk 0:01:02]} 26. Bh6
{[%clk 0:00:59.4]} 26... Rf7 {[%clk 0:00:58.7]} 27. Red1 {[%clk 0:00:50.3]}
27... Qb6 {[%clk 0:00:55.1]} 28. Kh1 {[%clk 0:00:25]} 28... Bd7 {[%clk
0:00:36.2]} 29. Qh4 {[%clk 0:00:14.3]} 29... Bxf4 {[%clk 0:00:19.7]} 30. Qxf4
{[%clk 0:00:13.2]} 30... Rxf2 {[%clk 0:00:19.5]} 31. Qe5 {[%clk 0:00:10.7]}
31... Rb2 {[%clk 0:00:18]} 32. Rxd7 {[%clk 0:00:09.5]} 32... Rb1 {[%clk
0:00:18.9]} 33. Qe8+ {[%clk 0:00:09.5]} 33... Rf8 {[%clk 0:00:18]} 34. Qxf8#
{[%clk 0:00:10.6]} 1-0

[Event "*** MasterClass Titled Tuesday Blitz"]
[Site "Chess.com"]
[Date "2017.09.05"]
[Round "10"]
[White "Fianchettoed-Tower"]
[Black "Rodalquilar"]
[Result "0-1"]
[WhiteElo "2378"]
[BlackElo "2503"]
[TimeControl "180+2"]
[EndTime "15:24:51 PDT"]
[Termination "Rodalquilar won by resignation"]

1. d4 {[%clk 0:03:01.9]} 1... Nf6 {[%clk 0:03:00.6]} 2. Bf4 {[%clk 0:03:03.2]}
2... c5 {[%clk 0:02:55.2]} 3. d5 {[%clk 0:03:03.1]} 3... d6 {[%clk 0:02:48.9]}
4. Nc3 {[%clk 0:03:02.3]} 4... e5 {[%clk 0:02:49.5]} 5. Bd2 {[%clk 0:03:00.4]}
5... b5 {[%clk 0:02:36.7]} 6. Nxb5 {[%clk 0:02:57.6]} 6... Nxd5 {[%clk
0:02:37.7]} 7. e4 {[%clk 0:02:58.9]} 7... Nc7 {[%clk 0:02:35.4]} 8. Nf3 {[%clk
0:02:54.3]} 8... Nxb5 {[%clk 0:02:35.4]} 9. Bxb5+ {[%clk 0:02:56.2]} 9... Bd7
{[%clk 0:02:36.3]} 10. Bxd7+ {[%clk 0:02:54]} 10... Qxd7 {[%clk 0:02:38.2]} 11.
O-O {[%clk 0:02:53.4]} 11... Be7 {[%clk 0:02:39.6]} 12. Bc3 {[%clk 0:02:44.3]}
12... O-O {[%clk 0:02:38.8]} 13. Nd2 {[%clk 0:02:45.7]} 13... f5 {[%clk
0:02:37.2]} 14. Nc4 {[%clk 0:02:45.6]} 14... Qe6 {[%clk 0:02:36.5]} 15. Qd5
{[%clk 0:02:36.3]} 15... Qxd5 {[%clk 0:02:37.7]} 16. exd5 {[%clk 0:02:38.2]}
16... Nd7 {[%clk 0:02:38.9]} 17. Ba5 {[%clk 0:02:31.7]} 17... Rfc8 {[%clk
0:02:37.2]} 18. a4 {[%clk 0:02:30]} 18... Rab8 {[%clk 0:02:38.2]} 19. b3 {[%clk
0:02:31]} 19... Nb6 {[%clk 0:02:38.6]} 20. Bxb6 {[%clk 0:02:30.3]} 20... axb6
{[%clk 0:02:40.5]} 21. Na3 {[%clk 0:02:30.2]} 21... Kf7 {[%clk 0:02:40.9]} 22.
c4 {[%clk 0:02:30.6]} 22... Ke8 {[%clk 0:02:41.2]} 23. Nb5 {[%clk 0:02:31.9]}
23... Kd7 {[%clk 0:02:37.4]} 24. a5 {[%clk 0:02:33.1]} 24... bxa5 {[%clk
0:02:36.4]} 25. Rxa5 {[%clk 0:02:35]} 25... Rb7 {[%clk 0:02:37.8]} 26. Rfa1
{[%clk 0:02:35.1]} 26... Rcb8 {[%clk 0:02:39.2]} 27. f3 {[%clk 0:02:35.4]} 27...
g5 {[%clk 0:02:39.6]} 28. Kf2 {[%clk 0:02:34.4]} 28... h5 {[%clk 0:02:38.4]} 29.
Ra6 {[%clk 0:02:34.9]} 29... g4 {[%clk 0:02:38.3]} 30. Rc6 {[%clk 0:02:32.6]}
30... Bh4+ {[%clk 0:02:31.3]} 31. g3 {[%clk 0:02:32.3]} 31... Be7 {[%clk
0:02:33.2]} 32. Raa6 {[%clk 0:02:31]} 32... f4 {[%clk 0:02:24.3]} 33. Nxd6
{[%clk 0:02:22.6]} 33... Rxb3 {[%clk 0:02:24.7]} 34. Ra7+ {[%clk 0:02:19.7]}
34... Kd8 {[%clk 0:02:23.2]} 35. Nf7+ {[%clk 0:01:34.7]} 35... Ke8 {[%clk
0:02:23.7]} 36. Nxe5 {[%clk 0:01:32.8]} 36... Rb2+ {[%clk 0:02:19.4]} 37. Ke1
{[%clk 0:01:33.9]} 37... Rxh2 {[%clk 0:02:17.4]} 38. Rxe7+ {[%clk 0:00:52.8]}
38... Kxe7 {[%clk 0:02:18.1]} 39. Re6+ {[%clk 0:00:54.3]} 39... Kd8 {[%clk
0:02:10.6]} 40. Nc6+ {[%clk 0:00:55.4]} 40... Kc7 {[%clk 0:02:12]} 41. Nxb8
{[%clk 0:00:56.7]} 41... fxg3 {[%clk 0:01:37]} 42. Na6+ {[%clk 0:00:52]} 42...
Kd8 {[%clk 0:01:37.9]} 43. Rd6+ {[%clk 0:00:20.4]} 43... Ke7 {[%clk 0:01:30.2]}
44. Rg6 {[%clk 0:00:17.5]} 44... Rh1+ {[%clk 0:01:25.1]} 45. Ke2 {[%clk
0:00:17.8]} 45... g2 {[%clk 0:01:25.9]} 46. d6+ {[%clk 0:00:19.1]} 46... Kf7
{[%clk 0:01:22.3]} 47. d7 {[%clk 0:00:19.4]} 47... g1=Q {[%clk 0:01:21.3]} 48.
d8=Q {[%clk 0:00:14.5]} 48... Qf1+ {[%clk 0:01:12.3]} 49. Kd2 {[%clk 0:00:11.2]}
49... Qd1+ {[%clk 0:01:12.7]} 50. Ke3 {[%clk 0:00:06.2]} 0-1

[Event "*** MasterClass Titled Tuesday Blitz"]
[Site "Chess.com"]
[Date "2017.09.05"]
[Round "10"]
[White "Jahonas"]
[Black "dolynachess"]
[Result "1-0"]
[WhiteElo "2233"]
[BlackElo "2373"]
[TimeControl "180+2"]
[EndTime "15:25:15 PDT"]
[Termination "Jahonas won by checkmate"]

1. d4 {[%clk 0:03:01.9]} 1... Nf6 {[%clk 0:03:00]} 2. Nf3 {[%clk 0:03:02.7]}
2... c5 {[%clk 0:03:01.9]} 3. dxc5 {[%clk 0:03:02.9]} 3... Na6 {[%clk 0:03:02]}
4. g3 {[%clk 0:03:04]} 4... Nxc5 {[%clk 0:03:02.7]} 5. Bg2 {[%clk 0:03:05.2]}
5... g6 {[%clk 0:03:04.3]} 6. O-O {[%clk 0:03:06]} 6... Bg7 {[%clk 0:03:05.9]}
7. Nc3 {[%clk 0:03:06.4]} 7... O-O {[%clk 0:03:07.4]} 8. Bg5 {[%clk 0:03:06.9]}
8... Nfe4 {[%clk 0:03:07.1]} 9. Nxe4 {[%clk 0:03:06.8]} 9... Nxe4 {[%clk
0:03:08.6]} 10. c3 {[%clk 0:03:07]} 10... Nxg5 {[%clk 0:03:08.2]} 11. Nxg5
{[%clk 0:03:08]} 11... d6 {[%clk 0:03:04.5]} 12. Qb3 {[%clk 0:03:06.4]} 12... e6
{[%clk 0:03:02]} 13. h4 {[%clk 0:03:06]} 13... Qc7 {[%clk 0:02:59.2]} 14. Rad1
{[%clk 0:03:05.2]} 14... d5 {[%clk 0:02:57.7]} 15. e4 {[%clk 0:03:04.7]} 15...
h6 {[%clk 0:02:53.6]} 16. Nh3 {[%clk 0:02:46.9]} 16... dxe4 {[%clk 0:02:52.2]}
17. Bxe4 {[%clk 0:02:46.1]} 17... e5 {[%clk 0:02:48.7]} 18. Kg2 {[%clk
0:02:43.7]} 18... Kh8 {[%clk 0:02:32]} 19. f3 {[%clk 0:02:40.5]} 19... f5 {[%clk
0:02:05.9]} 20. Bb1 {[%clk 0:02:40.7]} 20... Bd7 {[%clk 0:02:00]} 21. Ng5 {[%clk
0:02:00]} 21... e4 {[%clk 0:01:17.6]} 22. Ne6 {[%clk 0:01:29.4]} 22... Bxe6
{[%clk 0:00:40.6]} 23. Qxe6 {[%clk 0:01:29.5]} 23... Rae8 {[%clk 0:00:31.3]} 24.
Qxg6 {[%clk 0:01:09.8]} 24... e3 {[%clk 0:00:26.3]} 25. Bxf5 {[%clk 0:01:03.1]}
25... Rxf5 {[%clk 0:00:26.1]} 26. Qxe8+ {[%clk 0:01:02.6]} 26... Rf8 {[%clk
0:00:19.9]} 27. Qxe3 {[%clk 0:01:03.4]} 27... Rg8 {[%clk 0:00:20.4]} 28. Rd5
{[%clk 0:00:52]} 28... Qc6 {[%clk 0:00:17.1]} 29. Rfd1 {[%clk 0:00:50.5]} 29...
Re8 {[%clk 0:00:14.3]} 30. Qf4 {[%clk 0:00:45.3]} 30... Rf8 {[%clk 0:00:09.3]}
31. Qg4 {[%clk 0:00:44.4]} 31... Qb6 {[%clk 0:00:08.1]} 32. Rd7 {[%clk
0:00:41.1]} 32... Qxb2+ {[%clk 0:00:06.4]} 33. R1d2 {[%clk 0:00:39.3]} 33...
Qxc3 {[%clk 0:00:08.3]} 34. Kh3 {[%clk 0:00:36.6]} 34... Rg8 {[%clk 0:00:09.2]}
35. R2d6 {[%clk 0:00:30]} 35... Qc1 {[%clk 0:00:09.2]} 36. Qg6 {[%clk
0:00:23.9]} 36... Qh1+ {[%clk 0:00:09.4]} 37. Kg4 {[%clk 0:00:24]} 37... Qc1
{[%clk 0:00:08.1]} 38. Rxg7 {[%clk 0:00:19.8]} 38... Qc8+ {[%clk 0:00:05.6]} 39.
Kh5 {[%clk 0:00:17.3]} 39... Rxg7 {[%clk 0:00:06.5]} 40. Qf6 {[%clk 0:00:09.2]}
40... Qe8+ {[%clk 0:00:06.8]} 41. Kxh6 {[%clk 0:00:10.1]} 41... Qe3+ {[%clk
0:00:04.2]} 42. f4 {[%clk 0:00:09.8]} 42... Qxg3 {[%clk 0:00:05.3]} 43. Rd8#
{[%clk 0:00:10.4]} 1-0